Cogmind - Beta 15 @@@ ROGUE MODE // 2025.09.28 @ 17:59:10 Player: Steve French Result: Destroyed by G-47 Trooper with Particle Gun Performance ------------- Evolutions (2) 1000 Regions Visited (3) 600 Robots Destroyed (15) 75 Value Destroyed (366) 366 Prototype IDs (0) 0 Alien Tech Used (0) 0 Bonus (0) 0 TOTAL SCORE: 2041 Bonus ------- None Cogmind --------- Core Integrity 0/550 Matter 392/450 Energy 250/250 System Corruption 0% Temperature Cool (9) Movement Treading (152) Location -8/Materials Parts ------- > --- POWER (2) -------- Ion Engine > --- PROPULSION (3) --- Light Treads Advanced Treads > --- UTILITY (3) ------ Improved Heat Sink Small Storage Unit Large Matter Pod > --- WEAPON (3) ------- Shotgun > --- INVENTORY (8) ---- Light Ion Engine Aluminum Leg Wheel Compact Wheel Machine Analyzer Peak State ------------ > --- POWER ------------ Nuclear Core Nuclear Core > --- PROPULSION ------- Wheel Wheel Wheel > --- UTILITY ---------- Small Storage Unit Medium Matter Pod Large Matter Pod > --- WEAPON ----------- Particle Gun EM Pulse Cannon > --- INVENTORY -------- Ion Engine Light Treads Light Treads Compact Wheel Flight Unit Improved Heat Sink Machine Analyzer EM Pulse Gun [Rating: 18] Favorites ----------- Power Light Ion Engine Engine Light Ion Engine Power Core Nuclear Core Propulsion Aluminum Leg Treads Light Treads Leg Aluminum Leg Wheel Wheel Flight Unit Flight Unit Utility Small Storage Unit Device Tractor Beam Storage Small Storage Unit Weapon Small Laser Energy Gun Small Laser Energy Cannon EM Pulse Cannon Ballistic Gun Shotgun Special Melee Weapon Improved Datajack Build | -11 -10 -10 -8 ------- Run | Yrd Mat Sub Mat Slots Evolved 4 | . . . 4 Power 1 | . . . 1 Propulsion 1 | . . . 1 Utility 1 | . . . 1 Weapon 1 | . . . 1 Parts Attached 29 | 9 . . 20 Power 7 | 2 . . 5 Engine 5 | 2 . . 3 Core 2 | . . . 2 Reactor . | . . . . Propulsion 10 | 2 . . 8 Treads 3 | . . . 3 Leg 2 | 2 . . . Wheel 4 | . . . 4 Hover . | . . . . Flight 1 | . . . 1 Utility 5 | 2 . . 3 Device 2 | 1 . . 1 Storage 3 | 1 . . 2 Processor . | . . . . Hackware . | . . . . Protection . | . . . . Artifact . | . . . . Weapon 7 | 3 . . 4 Energy Gun 4 | 3 . . 1 Energy Cannon 1 | . . . 1 Ballistic Gun 1 | . . . 1 Ballistic Cannon . | . . . . Launcher . | . . . . Special Weapon . | . . . . Impact Weapon . | . . . . Slashing Weapon . | . . . . Piercing Weapon . | . . . . Special Melee Weapon 1 | . . . 1 Unidentified Prototypes . | . . . . Parts Lost 13 | . . . 13 Power 4 | . . . 4 Propulsion 4 | . . . 4 Utility . | . . . . Weapon 5 | . . . 5 Highest Loss Streak 7 | . . . 7 To Critical Strikes . | . . . . Average Backups 6 | 4 8 8 6 Power 1 | . 2 2 . Propulsion 3 | 2 4 4 3 Utility . | . 1 1 1 Weapon . | . 1 1 . Tool/Special . | . . . . Unused Backups 2 | . . . 2 Power . | . . . . Propulsion 1 | . . . 1 Utility 1 | . . . 1 Weapon . | . . . . Tool/Special . | . . . . Average Slot Usage (%) 86 | . 100 100 82 Engine 10 | . 14 14 9 Core 4 | . . . 6 Treads 3 | . . . 4 Leg 10 | . 28 28 5 Wheel 9 | . . . 12 Device 4 | . 14 14 1 Storage 22 | . 14 14 24 Energy Gun 16 | . 28 28 13 Energy Cannon 2 | . . . 3 Special Melee Weapon 1 | . . . 1 Peak Build Rating 18 | 7 7 7 18 Average Rating 10 | 5 7 7 13 On Entrance 5 | . 7 7 7 Naked Turns . | . . . . Heaviest Build 33 | 14 12 12 33 Greatest Support 42 | 20 20 20 42 Greatest Overweight (x) 7 | . . . 7 Average Overweight (x) . | . . . . Largest Inventory Capacity 8 | 8 8 8 8 Average Capacity 7 | 6 8 8 8 Most Carried 8 | 8 8 8 8 Average Carried 6 | 4 8 8 6 Final Capacity 8 | 8 8 8 8 Final Carried 8 | 8 8 8 5 Class Distribution -------------------- 62% | Mutant 25% | Scavenger-Mutant 11% | Gunner Dominant Class ---------------- Mutant | -10/Materials Mutant | -10/Subcaves Scavenger-Mutant | -8/Materials Resources | -11 -10 -10 -8 ----------- Run | Yrd Mat Sub Mat Matter Collected 665 | 326 . 27 312 Remotely 364 | 326 . 27 11 Salvage Created 470 | 134 . . 336 Parts 32 | 8 . . 24 Haulers Intercepted . | . . . . Recyclers Shooed . | . . . . Parts Field Recycled . | . . . . Retrieved Matter . | . . . . Parts Self-Destructed . | . . . . Prevented . | . . . . Kills | -11 -10 -10 -8 ------- Run | Yrd Mat Sub Mat Combat Hostiles Destroyed 10 | . . . 10 Guns 7 | . . . 7 Cannons 1 | . . . 1 AOE 2 | . . . 2 Classes Destroyed 6 | 3 . . 3 Worker 2 | 2 . . . Tunneler 1 | 1 . . . Recycler 1 | 1 . . . Operator 1 | . . . 1 Swarmer 4 | . . . 4 Grunt 6 | . . . 6 Best Kill Streak 4 | 2 . . 4 Combat Bots Only 4 | . . . 4 Max Kills in Single Turn 2 | 1 . . 2 Gunslinging . | . . . . Exploded 2 | . . . 2 Melee . | . . . . Uniques/NPCs Destroyed . | . . . . Combat | -11 -10 -10 -8 -------- Run | Yrd Mat Sub Mat Hostile Shots Fired 170 | . . 7 163 Missed 44 | . . 3 41 Hits 126 | . . 4 122 Projectile 126 | . . 4 122 Critical Strikes 4 | . . . 4 Damage Taken 1884 | . . 85 1799 Core 564 | . . . 564 Absorbed by Shields . | . . . . Core Remaining (%) 100 | 100 . 100 . Volleys Fired 69 | 8 . 4 57 Largest 3 | 2 . 2 3 Hottest 145 | 90 . 90 145 Shots Fired 118 | 16 . 8 94 Gun 108 | 16 . 8 84 Cannon 10 | . . . 10 Launcher . | . . . . Special . | . . . . Kinetic 7 | . . . 7 Thermal 93 | 14 . 8 71 Explosive . | . . . . Electromagnetic 18 | 2 . . 16 Robot Hit Streak 4 | 4 . 3 4 Robot Miss Streak 5 | 2 . 1 5 Penetration Max . | . . . . Secondary Targets . | . . . . Shots Hit Robots 56 | 9 . 6 41 Core Hits 31 | 5 . . 26 Critical Kills . | . . . . Critical Parts Destroyed . | . . . . Critical Strikes 3 | . . . 3 Burn 3 | . . . 3 Melee Attacks . | . . . . Impact . | . . . . Slashing . | . . . . Piercing . | . . . . Sneak Attacks . | . . . . Combat Hostiles . | . . . . Follow-up Attacks . | . . . . Damage Inflicted 986 | 114 . . 872 Guns 610 | 114 . . 496 Cannons 79 | . . . 79 Explosions 297 | . . . 297 Melee . | . . . . Ramming . | . . . . Kinetic 83 | . . . 83 Thermal 473 | 86 . . 387 Explosive 297 | . . . 297 Electromagnetic 133 | 28 . . 105 Impact . | . . . . Slashing . | . . . . Piercing . | . . . . Highest Corruption . | . . . . Average Corruption . | . . . . Corruption Purged . | . . . . Corruption Blocked . | . . . . Overload Shots . | . . . . Overflow Damage 44 | . . . 44 Projectiles . | . . . . Explosions 44 | . . . 44 Melee . | . . . . Knockbacks . | . . . . Impact . | . . . . Kinetic . | . . . . Secondary . | . . . . Self-Inflicted Damage . | . . . . Shots . | . . . . Rammed 1 | . . . 1 Targets Rammed 1 | . . . 1 Kicked . | . . . . Crushed . | . . . . Highest Temperature 476 | 90 . . 476 Average Temperature 163 | 31 . . 182 Received Heat Transfer 969 | . . 24 945 Effects 5 | . . . 5 Shutdowns 2 | . . . 2 Interference 2 | . . . 2 Short Circuit 1 | . . . 1 Siege Activations . | . . . . Martial Activations . | . . . . Shielding Activations . | . . . . Robots Disrupted . | . . . . Combat Hostiles . | . . . . Robots Corrupted . | . . . . Combat Hostiles . | . . . . Parts Fried . | . . . . Impact Corruptions . | . . . . Robots Melted . | . . . . Combat Hostiles . | . . . . Parts Melted 1 | . . . 1 Heat Transferred 1388 | 223 . . 1165 Parts Sabotaged . | . . . . Parts Stolen . | . . . . Parts Stripped . | . . . . Power Chain Reactions . | . . . . Alert | -11 -10 -10 -8 ------- Run | Yrd Mat Sub Mat Maximum Alert Level . | . . . . Low Security (%) 100 | 100 100 . 100 Level 1 . | . . . . Level 2 . | . . . . Level 3 . | . . . . Level 4 . | . . . . Level 5 . | . . . . High Security . | . . . . Max Security . | . . . . Peak Influence 89 | 5 3 . 89 Initial 3 | . 3 . . Average 21 | . 1 . 30 Influence Increases 326 | 20 . . 306 Destroy 0b10 Robot/C 200 | . . . 200 Destroy 0b10 Robot/NC 25 | 20 . . 5 Destroy Leader 40 | . . . 40 Successful Hack 2 | . . . 2 Disable Machine 15 | . . . 15 Destroy Structure 14 | . . . 14 Lose Combat Pursuer 30 | . . . 30 Influence Decreases 306 | 15 5 . 286 Entered New Map 2 | . 2 . . Time Decay 177 | 15 3 . 159 Lost Part 127 | . . . 127 Squads Dispatched 3 | . . . 3 Investigation 1 | . . . 1 Extermination . | . . . . Reinforcement 2 | . . . 2 Assault . | . . . . Garrison . | . . . . Intercept . | . . . . Searches Triggered . | . . . . Construction Impeded 1 | . . . 1 Haulers Reinforced . | . . . . Active Scanning Responses . | . . . . Cargo Convoy Interrupts . | . . . . Stealth | -11 -10 -10 -8 --------- Run | Yrd Mat Sub Mat Distress Signals 1 | . . . 1 Communications Jammed . | . . . . Distress Signals . | . . . . Times Spotted 17 | . 1 1 15 Peak Tracking Total 5 | . . 1 5 Tactical Retreats 2 | . . . 2 Traps | -11 -10 -10 -8 ------- Run | Yrd Mat Sub Mat Traps Triggered 1 | . . . 1 Indirectly . | . . . . Trap Hack Attempts . | . . . . Triggered . | . . . . Disarmed . | . . . . Reprogrammed . | . . . . Reused . | . . . . Traps Extracted . | . . . . Installed . | . . . . Triggered . | . . . . Machines | -11 -10 -10 -8 ---------- Run | Yrd Mat Sub Mat Machines Disabled 1 | . . . 1 Max in Single Turn 1 | . . . 1 Machines Repaired . | . . . . Machines Dismantled . | . . . . Machines Sabotaged . | . . . . Overloaded Fab Kills . | . . . . Hacking | -11 -10 -10 -8 --------- Run | Yrd Mat Sub Mat Machines Accessed 1 | . . . 1 Terminals 1 | . . . 1 Fabricators . | . . . . Repair Stations . | . . . . Recycling Units . | . . . . Scanalyzers . | . . . . Garrison Access . | . . . . Total Hacks 7 | . . . 7 Successful 5 | . . . 5 Failed 2 | . . . 2 Catastrophic . | . . . . Database Lockouts . | . . . . Manual . | . . . . Terminals 7 | . . . 7 Fabricators . | . . . . Repair Stations . | . . . . Recycling Units . | . . . . Scanalyzers . | . . . . Garrison Access . | . . . . Terminal Hacks 5 | . . . 5 Record 5 | . . . 5 Fabricator Hacks . | . . . . Repair Station Hacks . | . . . . Recycling Unit Hacks . | . . . . Scanalyzer . | . . . . Garrison Access Hacks . | . . . . Unauthorized Hacks . | . . . . Terminals . | . . . . Fabricators . | . . . . Repair Stations . | . . . . Recycling Units . | . . . . Scanalyzers . | . . . . Garrison Access . | . . . . Data Cores Recovered . | . . . . Used . | . . . . Hacking Detections . | . . . . Full Trace Events . | . . . . Feedback Events . | . . . . Feedback Blocked . | . . . . Robot Schematics Acquired . | . . . . Robots Built . | . . . . Authchips . | . . . . Time . | . . . . Total Robot Build Rating . | . . . . Part Schematics Acquired . | . . . . Parts Built . | . . . . Authchips . | . . . . Time . | . . . . Total Part Build Rating . | . . . . Parts Repaired . | . . . . Time . | . . . . Parts Recycled . | . . . . Recycled Matter . | . . . . Retrieved Matter . | . . . . Retrieved Components . | . . . . Parts Scanalyzed . | . . . . Part Schematics Acquired . | . . . . Parts Damaged . | . . . . Bothacking | -11 -10 -10 -8 ------------ Run | Yrd Mat Sub Mat Used RIF Installer . | . . . . Robots Hacked . | . . . . Non-combat . | . . . . Combat . | . . . . Robot Hacks Applied . | . . . . Relay Couplers Released . | . . . . Fabnet Peak Effective % . | . . . . Robots Rewired . | . . . . Allies Hacked . | . . . . Hacks Repelled . | . . . . Allies | -11 -10 -10 -8 -------- Run | Yrd Mat Sub Mat Total Allies . | . . . . Largest Group . | . . . . Highest-Rated Group . | . . . . Highest-Rated Ally . | . . . . Total Orders . | . . . . Ally Attacks . | . . . . Total Damage . | . . . . Kills . | . . . . Allies Corrupted . | . . . . Allies Melted . | . . . . Intel | -11 -10 -10 -8 ------- Run | Yrd Mat Sub Mat Active Infowar (turns) . | . . . . Robot Analysis Total . | . . . . Derelict Logs Recovered . | . . . . Drone Launches . | . . . . Drone Recoveries . | . . . . Exploration | -11 -10 -10 -8 ------------- Run | Yrd Mat Sub Mat Turns Passed 860 | 157 53 101 549 Spaces Moved 511 | 98 45 75 293 Core 35 | 19 . . 16 Treads 17 | . . . 17 Legs 254 | 79 45 75 55 Wheels 204 | . . . 204 Hover . | . . . . Flight 1 | . . . 1 Fastest Speed 50 | 50 120 120 80 Average Speed 113 | 106 120 120 113 Slowest Speed 400 | 120 120 120 400 Overloaded Moves . | . . . . Propulsion Burnouts . | . . . . Robots Hopped . | . . . . Potential Cave-ins . | . . . . Cave-ins Triggered . | . . . . Exploration Rate (%) 10 | 6 14 6 17 Regions Visited 3 Branch Regions 1 Pre-discovered Areas . | . . . . Known Exits Taken . | . . . . Unknown Exits Taken 3 | 1 1 1 . Scrap Searched . | . . . . Spaces Dug . | . . . . Terrain Destroyed 13 | . . . 13 Melee . | . . . . Projectile . | . . . . AOE 13 | . . . 13 Terrain Rammed . | . . . . Walls Destroyed . | . . . . Machines Disabled . | . . . . Actions | -11 -10 -10 -8 --------- Run | Yrd Mat Sub Mat Total 669 | 133 44 78 414 Wait 4 | 4 . . . Move 508 | 97 44 74 293 Hop . | . . . . Pick Up 32 | 15 . . 17 Fast Attach . | . . . . Attach 25 | 7 . . 18 Detach 1 | . . . 1 Swap 20 | 2 . . 18 Drop 9 | . . . 9 Fire 69 | 8 . 4 57 Melee . | . . . . Ram 1 | . . . 1 Kick . | . . . . Crush . | . . . . Escape Stasis . | . . . . Rewire . | . . . . Trap . | . . . . Miscellaneous . | . . . . Route ------- -11/Scrapyard -10/Materials -10/Subcaves -8/Materials History --------- Turn | Location | Event 10 | -11/Scrapyard | Discovered new exit (range 16) 158 | -11/Scrapyard | Entered Materials 159 | -10/Materials | Met a group of wandering Federalists 209 | -10/Materials | Discovered new exit (range 3) 211 | -10/Materials | Entered Subcaves 211 | -10/Subcaves | Accompanied by 2 allies 212 | -10/Subcaves | Continued accompanying wandering Federalists (3) 212 | -10/Subcaves | Approached by a straggling Scientist 304 | -10/Subcaves | Discovered new exit (range 8) 311 | -10/Subcaves | Build established: Mutant 312 | -10/Subcaves | Entered Materials 312 | -8/Materials | Evolved 4 slots: Power x1, Propulsion x1, Utility x1, Weapon x1 498 | -8/Materials | Lost 3 parts (1n2w) 790 | -8/Materials | Core integrity fell below 50% 821 | -8/Materials | Lost 7 parts (2p3n2w) 842 | -8/Materials | Core integrity fell below 20% 861 | -8/Materials | Destroyed by G-47 Trooper with Particle Gun Last Messages --------------- 00789_ Nuclear Core destroyed. 00790_ Flight Unit destroyed. 00797_ Terminal disabled. 00802_ Acquired Aluminum Leg. 00811_ K-01 Serf collects debris. 00814_ Dropped Med. Matter Pod. 00815_ K-01 Serf collects debris. 00832_ Acquired Lgt. Ion Engine. 00834_ EM Pulse Cannon destroyed. 00835_ Acquired Lgt. Ion Engine. 00846_ Acquired Shotgun. 00849_ Critical hit (Burn: +37). 00852_ G-50 Soldier destroyed. 00852_ R-06 Scavenger collects Adv. Heat Sink. 00853_ K-01 Serf collects debris. 00855_ Lgt. Ion Engine destroyed. 00856_ K-01 Serf collects debris. 00856_ R-06 Scavenger collects Carbon-fiber Leg. 00860_ K-01 Serf collects debris. 00860_ R-06 Scavenger collects Carbon-fiber Leg. Map ----- +----------------------------------------------------+ | | | | | | | | | | | | | | | | | | | | | | | | | | | | | | | | | | | ?????????????????????????????????????????????????? | | ?????????????????????????????????????????????????? | | ?????????????????????????????????????????????????? | | ?????????????????????????????????????????????????? | | ????############################## ????????#???"" | | ????# + ?????????# """"" | | ????# # g = #??????????????# """"" | | ????# /// # =*g * [ #?#####+######## """"" | | ##### /// + r = [@ #?# # + """ | | # # // *#### k [ #?# + # | | # # [ !=#??# #?#! # # | | # # T" #??# #?# # #?? | | # + = #??# #"T"#### #?# # #####+# | | # ###########?##+######## #?# ! + | | # #???????????# #k#?# # | | # #???????????# ! # ### # #####+# | | # #???????????# # ### #### # | | #???????????# / # """ " | | #???????????# """" # # """ " | | +???????????# """" # # """ " | | # #???????????# """" [# * ##+##### | | # #???????????# # # =## | | # #???????????########### # ## | | # ??????????????????????# """ ## | | # ??????????????????????# """ ######## | | # ??????????????????????#!! # """ #??????? | | # ??????????????????????#!| # #??????? | | # ??????????????? " # """ #??????? | | ? ??????????????# ### # """ #??????? | | ??????????????????# ????###+## # """ #??????? | | ??????????????????#????????????###### ??????????? | | ????????????????????????????????????#! ??????????? | | ????????????????????????????????????#? ?????????? | +----------------------------------------------------+ Best States ------------- Heat Dissipation 45 Energy Generation 23 Energy Capacity 380 Matter Stores 481 Matter Capacity 550 Sight Range 16 Terrain Scan Density 10 Evasion (%) 55 Recoil Reduction 2 Item Schematics ----------------- None Robot Schematics ------------------ None Fabricated ------------ Nothing Repaired ---------- Nothing Alien Tech Used ----------------- None Achievements -------------- None Challenges ------------ None Game ------ Seed SignalCorruptionRigger Manual? 0 Play Time 00:13:58 Cumulative 2.4 hours Start 2025.09.28 @ 17:47:09 End 2025.09.28 @ 17:59:10 Sessions 1 Manual Loads 0 Difficulty Rogue Special Mode None Game No. 9 Rogue 9 Adventurer 0 Explorer 0 Win Type - Total 0 Types 0/0/0/0/0/0/0/0/0/0 Lore% 1 Gallery% 5 Achievement% 5 Wizard Run 0 Options --------- Layout 1 ASCII 0 Keyboard 0 Movement Mouse Keybinds 0 Fullscreen 1 Font 32/SmallcapsGlow Map View 50x35 Zoom Use 0% Tactical HUD 1 Map Filters NONE Filters NONE Steam 1 RUN: 5164a1ce-7b3e-478c-80a8-10ab6e89caef